bitfinex-derivatives/quotes_SOLF0:USTF0_20250606
["timestamp","ask_amount","ask_price","bid_price","bid_amount"]
[1749246076697,6.6822,149.55,149.53,10.04235932]
[1749246077097,4.75225435,149.54,149.53,10.04235932]
[1749246077501,4.7521298,149.54,149.53,10.04235932]
[1749246078105,4.7521305,149.54,149.53,10.04235932]
[1749246078403,4.75211403,149.54,149.53,16.72525932]
[1749246078803,4.75146793,149.54,149.53,16.72525932]
[1749246079003,39.86180379,149.56,149.53,16.72525932]
[1749246079310,4.71898937,149.55,149.53,16.72525932]
[1749246079507,4.71898937,149.54,149.53,16.72525932]
[1749246080210,4.71537485,149.54,149.53,16.72525932]
[1749246080701,6.6821,149.55,149.53,16.72525932]
[1749246081107,4.71537485,149.54,149.53,16.72525932]
[1749246081608,4.69812497,149.54,149.53,16.72525932]
[1749246082401,39.86180379,149.56,149.53,16.72525932]
[1749246082608,4.69727338,149.55,149.53,16.72525932]
[1749246082816,4.69727338,149.54,149.53,16.72525932]
[1749246083505,39.86180379,149.56,149.53,16.72525932]
[1749246083700,4.69728542,149.55,149.53,16.72525932]
[1749246083899,4.69728542,149.54,149.53,16.72525932]
[1749246084208,39.86180379,149.56,149.53,16.72525932]
[1749246084617,4.69728092,149.55,149.53,16.72525932]
[1749246084906,4.69728092,149.54,149.53,16.72525932]
[1749246085809,4.69977291,149.54,149.53,16.72525932]
[1749246087213,4.69859367,149.54,149.53,16.72525932]
[1749246087408,4.69859368,149.54,149.53,16.72525932]
[1749246087713,33.18000379,149.56,149.55,6.682]
[1749246088011,37.87852737,149.56,149.55,6.682]
[1749246088211,4.69852737,149.56,149.55,6.682]
[1749246089112,4.69849523,149.56,149.55,6.682]
[1749246089312,4.69849522,149.56,149.55,6.682]
[1749246089507,3.79e-06,149.56,149.55,16.682]
[1749246090109,4.69849072,149.56,149.55,16.682]
[1749246090712,4.69874237,149.56,149.55,16.682]
[1749246091109,3.79e-06,149.56,149.55,16.682]
[1749246091512,4.69788385,149.56,149.55,16.682]
[1749246091709,4.69788059,149.56,149.55,16.682]
[1749246092512,4.69839361,149.56,149.55,16.682]
[1749246092710,3.79e-06,149.56,149.55,16.682]
[1749246093214,3.79e-06,149.56,149.55,22.92061967]
[1749246093405,3.79e-06,149.56,149.55,16.682]
[1749246094807,33.2,149.69,149.57,13.3623]
[1749246095114,33.2,149.7,149.6,6.21019743]
[1749246095315,39.8756,149.7,149.66,6.6767]
[1749246095815,6.71929687,149.69,149.67,0.04281717]
[1749246098306,2.54180792,149.68,149.67,0.04281717]
[1749246098710,6.71929687,149.69,149.67,0.04281717]
[1749246098916,9.22032524,149.68,149.67,0.04281717]
[1749246099719,6.6762,149.68,149.67,0.04281717]
[1749246099914,9.21594218,149.68,149.67,0.04281717]
[1749246100116,9.21594218,149.68,149.58,40.2506]
[1749246100117,2.53986048,149.68,149.58,40.2506]
[1749246100420,2.53905555,149.67,149.58,40.2506]
[1749246100620,2.53905555,149.66,149.63,6.6781]
[1749246100822,6.6771,149.67,149.63,6.6781]
[1749246101023,2.53917473,149.66,149.63,6.6781]
[1749246101323,6.7203213,149.66,149.64,0.04311682]
[1749246101920,6.6776,149.65,149.64,0.04311682]
[1749246102122,9.21575578,149.65,149.64,0.04311682]
[1749246103223,6.6776,149.65,149.64,0.04311682]
[1749246103719,0.0430213,149.66,149.55,43.38]
[1749246103923,2.5391788,149.65,149.55,43.38]
[1749246104119,2.5391788,149.64,149.58,6.6804]
[1749246104427,6.6796,149.61,149.58,6.6804]
[1749246104620,6.72330247,149.61,149.58,6.72970038]
[1749246104823,2.5391788,149.6,149.58,6.72970038]
[1749246105023,6.6799,149.6,149.58,0.04930038]
[1749246105324,9.22119945,149.6,149.58,0.04930038]
[1749246105924,9.22119945,149.6,149.58,6.73000038]
[1749246106325,2.54129945,149.6,149.58,6.73000038]
[1749246106930,2.54008922,149.6,149.58,6.73000038]
[1749246107126,13.92915661,149.61,149.58,6.73000038]
[1749246107429,6.72320247,149.61,149.58,6.73000038]
[1749246110331,6.72320247,149.61,149.59,6.6802]
[1749246113333,6.72320247,149.61,149.58,6.72980038]
[1749246114234,6.72320247,149.61,149.59,6.6802]
[1749246115337,6.72320247,149.61,149.58,6.72980038]
[1749246117939,0.04370247,149.61,149.58,0.04930038]
[1749246118729,0.04370247,149.61,149.58,10.04930038]
[1749246119236,33.38,149.6,149.58,10.04930038]
[1749246119749,6.6803,149.59,149.58,10.04930038]
[1749246121035,11.30401117,149.59,149.58,10.04930038]
[1749246121339,6.6803,149.59,149.58,10.04930038]
[1749246121539,11.30401117,149.59,149.58,10.04930038]
[1749246122539,11.30517871,149.59,149.58,10.04930038]
[1749246122931,6.6803,149.59,149.58,10.04930038]
[1749246123136,11.30517871,149.59,149.58,10.04930038]
[1749246123838,11.30517617,149.59,149.58,10.04930038]
[1749246124135,6.6803,149.59,149.58,10.04930038]
[1749246124638,11.30663086,149.59,149.58,10.04930038]
[1749246124843,6.6803,149.59,149.58,10.04930038]
[1749246125041,11.29050617,149.59,149.58,10.04930038]
[1749246125743,11.29037971,149.59,149.58,10.04930038]
[1749246125943,6.6803,149.59,149.58,10.04930038]
[1749246126344,11.29037707,149.59,149.58,10.04930038]
[1749246126641,6.6803,149.59,149.58,10.04930038]
[1749246126837,11.29037707,149.59,149.58,10.04930038]
[1749246127741,6.6803,149.59,149.58,10.04930038]
[1749246127941,11.29038991,149.59,149.58,10.04930038]
[1749246128136,6.6803,149.59,149.58,10.04930038]
[1749246128545,11.29038991,149.59,149.58,10.04930038]
[1749246130144,11.28777613,149.59,149.58,10.04930038]
[1749246130341,6.6803,149.59,149.58,10.04930038]
[1749246130543,11.28777613,149.59,149.58,10.04930038]
[1749246131145,11.28913579,149.59,149.58,10.04930038]
[1749246131345,6.6803,149.59,149.58,10.04930038]
[1749246131846,11.28914379,149.59,149.58,10.04930038]
[1749246132042,6.6803,149.59,149.58,10.04930038]
[1749246132242,11.29168749,149.59,149.58,10.04930038]
[1749246133045,6.6803,149.59,149.58,10.04930038]
[1749246133344,11.29168749,149.59,149.58,10.04930038]
[1749246133540,11.29170466,149.59,149.58,10.04930038]
[1749246133745,11.29171122,149.59,149.58,10.04930038]
[1749246134449,11.29173253,149.59,149.58,10.04930038]
[1749246134948,11.29173355,149.59,149.58,10.04930038]
[1749246136843,6.6803,149.59,149.58,10.04930038]
[1749246137048,11.29148528,149.59,149.58,10.04930038]
[1749246138448,11.28817605,149.59,149.58,10.04930038]
[1749246139147,11.28818672,149.59,149.58,10.04930038]
[1749246139549,11.28821236,149.59,149.58,10.04930038]
[1749246140049,11.28282243,149.59,149.58,10.04930038]
[1749246140240,11.28281539,149.59,149.58,10.04930038]
[1749246140647,11.2828046,149.59,149.58,10.04930038]
[1749246140849,6.6803,149.59,149.58,10.04930038]
[1749246141050,11.28281539,149.59,149.58,10.04930038]
[1749246142243,11.28829523,149.59,149.58,10.04930038]
[1749246142448,6.6803,149.59,149.58,10.04930038]
[1749246142948,11.28829523,149.59,149.58,10.04930038]
[1749246143652,11.28842071,149.59,149.58,10.04930038]
[1749246143853,11.28840991,149.59,149.58,10.04930038]
[1749246144057,6.6803,149.59,149.58,10.04930038]
[1749246144255,11.28840991,149.59,149.58,10.04930038]
[1749246144554,11.29902972,149.59,149.58,10.04930038]
[1749246145456,6.6803,149.59,149.58,10.04930038]
[1749246145849,11.30214368,149.59,149.58,10.04930038]
[1749246146154,11.30213564,149.59,149.58,10.04930038]
[1749246147452,11.30282219,149.59,149.58,10.04930038]
[1749246147849,11.30842506,149.59,149.58,10.04930038]
[1749246148351,6.6803,149.59,149.58,10.04930038]
[1749246148551,11.30842506,149.59,149.58,10.04930038]
[1749246149456,11.30842307,149.59,149.58,10.04930038]
[1749246150751,11.31527679,149.59,149.58,10.04930038]
[1749246152049,33.16,149.6,149.58,10.04930038]
[1749246152451,33.16,149.6,149.59,6.6802]
[1749246164266,37.7262113,149.6,149.59,6.6802]
[1749246164466,33.16,149.6,149.59,16.6802]
[1749246164863,37.72747164,149.6,149.59,16.6802]
[1749246165068,33.16,149.6,149.59,16.6802]
[1749246165867,37.72746559,149.6,149.59,16.6802]
[1749246166062,37.72746556,149.6,149.59,16.6802]
[1749246166468,0.04370247,149.61,149.6,6.6798]
[1749246166669,4.60561031,149.61,149.6,6.6798]
[1749246166967,0.04370247,149.61,149.6,6.6798]
[1749246167268,4.60561437,149.61,149.6,6.6798]
[1749246167469,0.04370247,149.61,149.6,6.6798]
[1749246167768,4.60562042,149.61,149.6,6.6798]
[1749246168869,4.60562646,149.61,149.6,6.6798]
[1749246169065,4.60561437,149.61,149.6,6.6798]
[1749246169265,0.04370247,149.61,149.6,6.6798]
[1749246169666,4.61102191,149.61,149.6,6.6798]
[1749246170160,4.60353108,149.61,149.6,6.6798]
[1749246170865,4.6035161,149.61,149.6,6.6798]
[1749246172369,0.04370247,149.61,149.6,6.6798]
[1749246172578,4.60364195,149.61,149.6,6.6798]
[1749246172767,0.04370247,149.61,149.6,6.6798]
[1749246173069,39.6185,149.63,149.61,6.679]
[1749246173470,4.55994543,149.62,149.61,6.679]
[1749246173867,39.6185,149.63,149.61,6.679]
[1749246174063,4.55900748,149.62,149.61,6.679]
[1749246174264,4.55900149,149.62,149.61,6.679]
[1749246174462,39.66972245,149.63,149.61,6.679]
[1749246174869,4.55900058,149.62,149.61,6.679]
[1749246175268,39.66972245,149.63,149.61,6.679]
[1749246175473,11.23791256,149.62,149.6,6.6796]
[1749246175672,4.55901256,149.61,149.6,6.6796]
[1749246175869,4.55868237,149.61,149.6,6.6796]
[1749246176274,4.55758578,149.61,149.6,6.6796]
[1749246176573,39.66992245,149.63,149.6,6.6796]
[1749246176775,4.55758578,149.62,149.6,6.6796]
[1749246177069,4.55758572,149.61,149.6,6.6796]
[1749246177577,39.66992245,149.63,149.6,6.6796]
[1749246177870,4.55758572,149.62,149.6,6.6796]
[1749246178075,39.66992245,149.63,149.6,6.6796]
[1749246178667,4.55758572,149.62,149.6,6.6796]
[1749246178872,4.55758572,149.61,149.6,6.6796]
[1749246179378,39.66992245,149.63,149.6,16.6796]
[1749246179578,4.55139891,149.62,149.6,16.6796]
[1749246179774,4.55140798,149.61,149.6,16.6796]
[1749246180176,39.66992245,149.63,149.6,16.6796]
[1749246180376,4.55140798,149.62,149.6,16.6796]
[1749246180677,4.55086454,149.61,149.6,10.0]
[1749246180870,4.54998424,149.61,149.6,10.0]
[1749246181066,6.679,149.62,149.6,10.0]
[1749246181270,4.54998424,149.61,149.6,10.0]
[1749246182776,4.54951458,149.61,149.6,10.0]
[1749246182983,6.679,149.62,149.6,10.0]
[1749246183179,4.54951458,149.61,149.6,10.0]
[1749246183378,6.679,149.62,149.6,10.0]
[1749246183879,4.54951458,149.61,149.6,10.0]
[1749246184081,6.679,149.62,149.6,10.0]
[1749246184283,4.54951458,149.61,149.6,10.0]
[1749246184679,6.679,149.62,149.6,10.0]
[1749246185085,4.54390696,149.61,149.6,10.0]
[1749246185282,6.679,149.62,149.6,10.0]
[1749246185589,4.54390696,149.61,149.6,10.0]
[1749246185981,6.679,149.62,149.6,10.0]
[1749246186180,4.54424746,149.61,149.6,10.0]
[1749246187486,4.56553817,149.61,149.6,10.0]
[1749246187980,6.679,149.62,149.6,10.0]
[1749246188186,4.56553713,149.61,149.6,10.0]
[1749246188381,6.679,149.62,149.6,10.0]
[1749246188786,4.56549853,149.61,149.6,10.0]
[1749246188982,4.56549846,149.61,149.6,10.0]
[1749246189776,4.56639821,149.61,149.6,10.0]
[1749246190181,4.5664043,149.61,149.6,10.0]
[1749246190387,6.679,149.62,149.6,10.0]
[1749246190587,4.56641647,149.61,149.6,10.0]
[1749246191589,4.5653798,149.61,149.6,10.0]
[1749246193188,4.56742701,149.61,149.6,10.0]
[1749246193378,6.679,149.62,149.6,10.0]
[1749246193985,4.56742729,149.61,149.6,10.0]
[1749246195091,6.679,149.62,149.6,10.0]
[1749246195384,37.37094051,149.61,149.6,10.0]
[1749246195585,32.8,149.61,149.6,10.0]
[1749246195779,37.37093319,149.61,149.6,10.0]
[1749246196189,37.37093319,149.61,149.6,16.6798]
[1749246196588,37.37155543,149.61,149.6,16.6798]
[1749246196790,37.3797685,149.61,149.6,16.6798]
[1749246196989,32.8,149.61,149.6,16.6798]
[1749246197292,37.3797685,149.61,149.6,16.6798]
[1749246197890,37.3797644,149.61,149.6,16.6798]
[1749246198490,37.3805477,149.61,149.6,16.6798]
[1749246200094,32.8,149.61,149.6,16.6798]
[1749246200293,0.05122245,149.63,149.62,6.6789]
[1749246200485,4.6425318,149.63,149.62,6.6789]
[1749246201494,0.05122245,149.63,149.62,6.6789]
[1749246201691,4.63950219,149.63,149.62,6.6789]
[1749246201896,4.63950316,149.63,149.62,6.6789]
[1749246202489,4.64019756,149.63,149.62,6.6789]
[1749246202692,4.64019755,149.63,149.62,6.6789]
[1749246202894,4.64018858,149.63,149.62,6.6789]
[1749246203892,4.64032504,149.63,149.62,6.6789]
[1749246204292,0.05122245,149.63,149.62,6.6789]
[1749246204496,4.64032752,149.63,149.62,6.6789]
[1749246205495,4.64368014,149.63,149.62,6.6789]
[1749246205694,4.64368606,149.63,149.62,6.6789]
[1749246205890,0.05122245,149.63,149.62,6.6789]
[1749246206096,4.64368606,149.63,149.62,6.6789]
[1749246207500,0.05122245,149.63,149.62,6.6789]
[1749246207688,4.65302885,149.63,149.62,6.6789]
[1749246207889,4.65302589,149.63,149.62,6.6789]
[1749246209100,4.65368604,149.63,149.62,6.6789]
[1749246209296,0.05122245,149.63,149.62,6.6789]
[1749246209601,4.65368012,149.63,149.62,16.6789]
[1749246210502,4.65368012,149.63,149.62,10.0]
[1749246210801,4.65845257,149.63,149.62,10.0]
[1749246211495,4.65796615,149.63,149.62,10.0]
[1749246212601,4.65840306,149.63,149.62,10.0]
[1749246212796,4.65841487,149.63,149.62,10.0]
[1749246213203,4.65841783,149.63,149.62,10.0]
[1749246214303,4.65299865,149.63,149.62,10.0]
[1749246214792,0.05122245,149.63,149.62,10.0]
[1749246214991,4.65298671,149.63,149.62,10.0]
[1749246215289,0.05122245,149.63,149.62,10.0]
[1749246215493,4.65298198,149.63,149.62,10.0]
[1749246216198,4.65664809,149.63,149.62,10.0]
[1749246216398,0.05122245,149.63,149.62,10.0]
[1749246216602,4.65663616,149.63,149.62,10.0]
[1749246216802,4.65663514,149.63,149.62,10.0]
[1749246217904,4.65819907,149.63,149.62,10.0]
[1749246218502,0.05122245,149.63,149.62,10.0]
[1749246218705,4.6582001,149.63,149.62,10.0]
[1749246219398,4.65822097,149.63,149.62,10.0]
[1749246219598,0.05122245,149.63,149.62,10.0]
[1749246219799,4.65821799,149.63,149.62,10.0]
[1749246220298,0.05122245,149.63,149.62,10.0]
[1749246220506,4.65849721,149.63,149.62,10.0]
[1749246221005,4.66719956,149.63,149.62,10.0]
[1749246221305,4.66719067,149.63,149.62,10.0]
[1749246221696,0.05122245,149.63,149.62,10.0]
[1749246221901,4.6671864,149.63,149.62,10.0]
[1749246223203,0.05122245,149.63,149.62,10.0]
[1749246223402,4.66718639,149.63,149.62,10.0]
[1749246224807,4.88566749,149.63,149.62,10.0]
[1749246225109,0.05122245,149.63,149.62,10.0]
[1749246225298,4.88566751,149.63,149.62,10.0]
[1749246226812,0.05122245,149.63,149.62,10.0]
[1749246227110,4.89056383,149.63,149.62,10.0]
[1749246227603,4.89056383,149.63,149.62,16.6789]
[1749246228100,4.89056929,149.63,149.62,16.6789]
[1749246228711,0.05122245,149.63,149.62,16.6789]
[1749246228910,4.89057611,149.63,149.62,16.6789]
[1749246229413,4.89057611,149.63,149.62,10.0]
[1749246229607,4.89307241,149.63,149.62,10.0]
[1749246229803,0.05122245,149.63,149.62,10.0]
[1749246230007,4.89308636,149.63,149.62,10.0]
[1749246230209,0.05122245,149.63,149.62,10.0]
[1749246230513,4.89408644,149.63,149.62,10.0]
[1749246230712,41.62290057,149.7,149.62,10.0]
[1749246230907,33.28,149.7,149.62,10.0]
[1749246231516,33.28,149.7,149.63,6.6781]
[1749246231717,0.04769388,149.68,149.65,0.05027666]
[1749246232317,6.6767,149.67,149.65,0.05027666]
[1749246232612,0.04769388,149.68,149.65,0.05027666]
[1749246232820,6.6771,149.66,149.65,0.05027666]
[1749246233015,9.2338308,149.66,149.65,0.05027666]
[1749246233316,6.6771,149.66,149.65,0.05027666]
[1749246233615,9.23434587,149.66,149.65,0.05027666]
[1749246233823,6.6779,149.65,149.62,10.0]
[1749246234012,2.55747575,149.64,149.62,10.0]
[1749246234208,2.55747575,149.63,149.62,10.0]
[1749246234619,9.23597575,149.63,149.62,10.0]
[1749246235216,9.23711387,149.63,149.62,10.0]
[1749246235617,9.2370677,149.63,149.62,10.0]
[1749246236618,9.2370677,149.63,149.62,4.98954684]
[1749246237010,6.6785,149.63,149.62,4.98954684]
[1749246237212,9.23707415,149.63,149.62,4.98954684]
[1749246237518,6.6785,149.63,149.62,4.98954684]
[1749246239816,40.00377432,149.64,149.62,4.98954684]
[1749246240316,33.32557432,149.64,149.62,4.98954684]
[1749246240620,0.04557432,149.64,149.62,4.98954684]
[1749246240817,0.04557432,149.64,149.63,6.6785]
[1749246241114,0.04557432,149.64,149.63,11.32662259]
[1749246242318,4.64812259,149.69,149.63,4.64812259]
[1749246242523,2.55505797,149.68,149.66,4.64812259]
[1749246242714,37.92812259,149.7,149.66,11.32522259]
[1749246242715,2.55497456,149.67,149.66,11.32522259]
[1749246242919,33.28,149.74,149.66,4.64519772]
[1749246243122,4.64519772,149.76,149.71,4.64519772]
[1749246243428,0.04264068,149.75,149.72,0.04510454]
[1749246243811,0.04264068,149.75,149.74,6.6736]
[1749246250023,0.04264068,149.75,149.73,6.6739]
[1749246250825,0.04264068,149.75,149.72,6.71940454]
[1749246251723,0.04264068,149.75,149.73,6.6739]
[1749246252020,0.04264068,149.75,149.72,0.04510454]
[1749246252422,0.04264068,149.75,149.73,6.6736]
[1749246252620,0.04264068,149.75,149.72,0.04510454]
[1749246253524,6.71574068,149.75,149.72,6.71940454]
[1749246253728,6.71574068,149.75,149.72,0.04510454]
[1749246254431,6.71574068,149.75,149.72,10.04510454]
[1749246254928,7.31350472,149.74,149.72,10.04510454]
[1749246255231,7.30272084,149.73,149.72,10.04510454]
[1749246255725,7.30105562,149.73,149.72,10.04510454]
[1749246255927,6.6736,149.74,149.72,10.04510454]
[1749246256222,7.30105526,149.73,149.72,10.04510454]
[1749246256520,4.66820918,149.73,149.72,10.04510454]
[1749246256727,2.63285443,149.73,149.72,10.04510454]
[1749246256929,7.29892803,149.73,149.72,10.04510454]
[1749246257127,7.29894464,149.73,149.72,10.04510454]
[1749246257322,6.6736,149.74,149.72,10.04510454]
[1749246257530,4.66502625,149.73,149.72,10.04510454]
[1749246257728,4.66502625,149.73,149.72,16.71950454]
[1749246258031,4.66503113,149.73,149.72,16.71950454]
[1749246258234,6.6736,149.74,149.72,16.71950454]
[1749246258535,2.63232914,149.73,149.72,16.71950454]
[1749246258728,4.66503113,149.73,149.72,16.71950454]
[1749246259233,7.29467989,149.73,149.72,16.71950454]
[1749246259429,0.04264068,149.75,149.74,6.6736]
[1749246259629,4.068e-05,149.75,149.74,13.92885982]
[1749246261433,4.068e-05,149.75,149.74,13.9231852]
[1749246261634,4.068e-05,149.75,149.74,13.92341946]
[1749246262837,4.068e-05,149.75,149.74,6.6736]
[1749246264440,4.068e-05,149.75,149.72,10.04510454]
[1749246265238,4.068e-05,149.75,149.73,6.6738]
[1749246267330,39.7649,149.85,149.73,54.40967184]
[1749246267536,39.7649,149.85,149.78,7.25483592]
[1749246267939,39.7649,149.85,149.82,6.6699]
[1749246268337,46.47975072,149.85,149.82,6.71513197]
[1749246268739,46.47975072,149.85,149.82,16.71513197]
[1749246269140,53.73458664,149.85,149.82,16.71513197]
[1749246269346,47.06578664,149.85,149.82,16.71513197]
[1749246271341,53.73458664,149.85,149.82,16.71513197]
[1749246271546,7.11061952,149.84,149.82,16.71513197]
[1749246271743,7.1106167,149.84,149.82,16.71513197]
[1749246271947,7.11060153,149.84,149.82,16.71513197]
[1749246272147,7.11035201,149.84,149.82,16.71513197]
[1749246272348,7.10853692,149.84,149.82,16.71513197]
[1749246272547,2.54490404,149.84,149.82,16.71513197]
[1749246272845,7.10853692,149.84,149.82,16.71513197]
[1749246273140,4.56363288,149.84,149.82,16.71513197]
[1749246273346,7.12541737,149.84,149.82,16.71513197]
[1749246273546,7.12542692,149.84,149.82,16.71513197]
[1749246273746,7.12542789,149.84,149.82,16.71513197]
[1749246273943,2.56179459,149.84,149.82,10.04523197]
[1749246274147,2.56173761,149.84,149.82,10.04523197]
[1749246274946,9.23022624,149.84,149.82,10.04523197]
[1749246275146,9.81603966,149.84,149.82,10.04523197]
[1749246275346,14.39454364,149.84,149.82,10.04523197]
[1749246275746,7.25483592,149.84,149.82,10.04523197]
[1749246275951,14.39454467,149.84,149.82,10.04523197]
[1749246276151,2.56152696,149.83,149.82,10.04523197]
[1749246276353,14.39460677,149.84,149.82,10.04523197]
[1749246276750,6.6695,149.83,149.82,10.04523197]
[1749246277055,11.24557786,149.83,149.82,10.04523197]
[1749246277350,13.80605172,149.83,149.82,10.04523197]
[1749246277549,13.80459304,149.83,149.82,10.04523197]
[1749246278748,9.22667052,149.83,149.82,10.04523197]
[1749246278948,13.80179306,149.83,149.82,10.04523197]
[1749246279155,6.6695,149.83,149.82,10.04523197]
[1749246279556,9.22699414,149.83,149.82,10.04523197]
[1749246280565,9.22762553,149.83,149.82,10.04523197]
[1749246280752,6.6695,149.83,149.82,10.04523197]
[1749246280955,11.2495222,149.83,149.82,10.04523197]
[1749246281260,13.82678336,149.83,149.82,10.04523197]
[1749246281853,13.82687246,149.83,149.82,10.04523197]
[1749246282052,9.23445185,149.83,149.82,10.04523197]
[1749246282255,11.26192061,149.83,149.82,10.04523197]
[1749246282657,13.82687792,149.83,149.82,10.04523197]
[1749246282854,9.23445185,149.83,149.82,10.04523197]
[1749246283167,13.82690832,149.83,149.82,10.04523197]
[1749246283958,9.23448225,149.83,149.82,10.04523197]
[1749246284164,11.26369684,149.83,149.82,10.04523197]
[1749246284464,13.85789242,149.83,149.82,5.04112057]
[1749246284668,13.85788691,149.83,149.82,5.04112057]
[1749246285753,11.29077635,149.83,149.82,5.04112057]
[1749246285954,9.25120389,149.83,149.82,5.04112057]
[1749246286155,11.29077888,149.83,149.82,5.04112057]
[1749246286360,11.29078182,149.83,149.82,5.04112057]
[1749246286669,9.25123427,149.83,149.82,5.04112057]
[1749246286867,13.87251609,149.83,149.82,5.04112057]
[1749246287667,9.25123361,149.83,149.82,5.04112057]
[1749246287861,13.87150908,149.83,149.82,5.04112057]
[1749246288461,11.28977547,149.83,149.82,5.04112057]
[1749246288660,13.871387,149.83,149.82,5.04112057]
[1749246289371,13.87141623,149.83,149.82,5.04112057]
[1749246289667,13.87130557,149.83,149.82,5.04112057]
[1749246289867,13.87136479,149.83,149.82,5.04112057]
[1749246290160,13.8714569,149.83,149.82,5.04112057]
[1749246290362,13.87141117,149.83,149.82,5.04112057]
[1749246290868,11.29071435,149.83,149.82,5.04112057]
[1749246291163,9.25120228,149.83,149.82,5.04112057]
[1749246291369,13.87244183,149.83,149.82,5.04112057]
[1749246291768,13.87240573,149.83,149.82,5.04112057]
[1749246293175,11.29060503,149.83,149.82,5.04112057]
[1749246293370,13.87818119,149.83,149.82,5.04112057]
[1749246293572,9.25705107,149.83,149.82,5.04112057]
[1749246293775,13.8781506,149.83,149.82,5.04112057]
[1749246293971,13.88354747,149.83,149.82,5.04112057]
[1749246294477,13.88371346,149.83,149.82,5.04112057]
[1749246294681,13.88434787,149.83,149.82,5.04112057]
[1749246294880,9.25724766,149.83,149.82,5.04112057]
[1749246295077,13.88437847,149.83,149.82,5.04112057]
[1749246295271,11.29663081,149.83,149.82,5.04112057]
[1749246295472,13.88437847,149.83,149.82,5.04112057]
[1749246295678,11.29663081,149.83,149.82,5.04112057]
[1749246295872,13.88437847,149.83,149.82,5.04112057]
[1749246296278,13.88448605,149.83,149.82,5.04112057]
[1749246296776,9.25735524,149.83,149.82,5.04112057]
[1749246296974,9.25739238,149.83,149.82,5.04112057]
[1749246297181,13.88434477,149.83,149.82,5.04112057]
[1749246297380,6.6695,149.83,149.82,5.04112057]
[1749246297676,13.88440794,149.83,149.82,5.04112057]
[1749246298478,13.88152141,149.83,149.82,5.04112057]
[1749246298780,13.89036294,149.83,149.82,5.04112057]
[1749246299471,13.89056523,149.83,149.82,5.04112057]
[1749246299877,11.30215405,149.83,149.82,5.04112057]
[1749246300172,9.25791118,149.83,149.82,5.04112057]
[1749246300380,13.88646476,149.83,149.82,5.04112057]
[1749246300778,9.25794816,149.83,149.82,5.04112057]
[1749246300974,6.67,149.82,149.81,0.04763619]
[1749246301575,11.29851202,149.82,149.81,0.04763619]
[1749246301774,11.29825186,149.82,149.81,0.04763619]
[1749246302082,11.29826108,149.82,149.81,0.04763619]
[1749246302277,13.88673503,149.82,149.81,0.04763619]
[1749246302485,11.29826195,149.82,149.81,0.04763619]
[1749246302677,11.29827021,149.82,149.81,0.04763619]
[1749246302879,6.67,149.82,149.81,10.04763619]
[1749246303178,9.25553361,149.82,149.81,10.04763619]
[1749246303382,13.88398548,149.82,149.81,10.04763619]
[1749246303576,6.67,149.82,149.81,5.0430249]
[1749246303778,13.8840107,149.82,149.81,5.0430249]
[1749246303977,11.29831755,149.82,149.81,5.0430249]
[1749246304174,9.25569315,149.82,149.81,5.0430249]
[1749246304578,11.29831023,149.82,149.81,5.0430249]
[1749246304779,13.88402398,149.82,149.81,5.0430249]
[1749246304977,13.88402674,149.82,149.81,5.0430249]
[1749246305177,13.88355662,149.82,149.81,5.0430249]
[1749246305376,11.29470108,149.82,149.81,5.0430249]
[1749246305783,13.87994471,149.82,149.81,5.0430249]
[1749246305985,11.29470114,149.82,149.81,5.0430249]
[1749246306185,13.87994477,149.82,149.81,5.0430249]
[1749246306485,11.29470108,149.82,149.81,5.0430249]
[1749246306988,6.67,149.82,149.81,5.0430249]
[1749246307286,11.29469832,149.82,149.81,5.0430249]
[1749246307487,6.67,149.82,149.81,5.0430249]
[1749246307884,13.88108999,149.82,149.81,5.0430249]
[1749246308286,13.88108999,149.82,149.81,1.43400335]
[1749246308483,11.29469832,149.82,149.81,1.43400335]
[1749246308680,6.67,149.82,149.81,1.43400335]
[1749246309076,6.6704,149.81,149.8,3.014e-05]
[1749246309277,51.76518784,149.81,149.8,3.014e-05]
[1749246309481,54.35249983,149.81,149.8,3.014e-05]
[1749246309783,6.6722,149.77,149.76,0.27906]
[1749246309980,47.10498807,149.77,149.76,0.27906]
[1749246310183,47.10508812,149.77,149.76,0.27906]
[1749246310480,39.8922,149.77,149.76,0.27906]
[1749246310687,47.10519332,149.77,149.76,0.27906]
[1749246310888,47.10525466,149.77,149.76,0.27906]
[1749246311488,47.10525466,149.77,149.76,10.27906]
[1749246311789,47.1044995,149.77,149.76,10.27906]
[1749246311983,44.51768056,149.77,149.76,10.27906]